fUST/lending_fUST_20240227
["ID","MTS","AMOUNT","RATE_DAILY","PERIOD"]
[315374102,1708996238495,-330.55025172,0.00019178,2]
[315374103,1708996238509,-169.44974828,0.00019178,2]
[315374104,1708996238518,-500.0,0.00019178,2]
[315374105,1708996238527,-500.0,0.00019178,2]
[315374106,1708996238536,-504.45809868,0.00019178,2]
[315374107,1708996238547,-500.0,0.00019178,2]
[315374108,1708996238556,-500.0,0.00019178,2]
[315374109,1708996238565,-500.0,0.00019178,2]
[315374110,1708996238574,-500.0,0.00019178,2]
[315374111,1708996238583,-500.0,0.00019178,2]
[315374112,1708996238592,-500.0,0.00019178,2]
[315374113,1708996238602,-500.0,0.00019178,2]
[315374114,1708996238611,-500.0,0.00019178,2]
[315374115,1708996238620,-501.8316353,0.00019178,2]
[315374116,1708996238629,-500.0,0.00019178,2]
[315374117,1708996238639,-500.0,0.00019178,2]
[315374118,1708996238649,-500.0,0.00019178,2]
[315374119,1708996238658,-500.0,0.00019178,2]
[315374120,1708996238668,-500.0,0.00019178,2]
[315374121,1708996238676,-500.0,0.00019178,2]
[315374122,1708996238686,-500.0,0.00019178,2]
[315374123,1708996238696,-500.14357954,0.00019178,2]
[315374124,1708996238706,-500.0,0.00019178,2]
[315374125,1708996238715,-500.0,0.00019178,2]
[315374126,1708996238724,-500.0,0.00019178,2]
[315374127,1708996238733,-615.71848017,0.00019178,2]
[315374128,1708996238743,-500.0,0.00019178,2]
[315374129,1708996238752,-500.0,0.00019178,2]
[315374130,1708996238761,-500.0,0.00019178,2]
[315374131,1708996238770,-500.0,0.00019178,2]
[315374132,1708996238779,-640.45616541,0.00019178,2]
[315374133,1708996238788,-500.0,0.00019178,2]
[315374134,1708996238796,-500.0,0.00019178,2]
[315374135,1708996238806,-500.0,0.00019178,2]
[315374136,1708996238815,-442.24473459,0.00019178,2]
[315374137,1708996238824,-500.0,0.00019178,2]
[315374138,1708996238834,-500.0,0.00019178,2]
[315374139,1708996238843,-500.0,0.00019178,2]
[315374140,1708996238852,-500.0,0.00019178,2]
[315374141,1708996238861,-500.73988973,0.00019178,2]
[315374142,1708996238870,-2065.96,0.00019178,2]
[315374143,1708996238879,-500.0,0.00019178,2]
[315374144,1708996238889,-407.07496892,0.00019178,2]
[315374145,1708996238898,-500.0,0.00019178,2]
[315374146,1708996238920,-500.0,0.00019178,2]
[315374147,1708996238939,-500.0,0.00019178,2]
[315374148,1708996238948,-500.0,0.00019178,2]
[315374149,1708996238957,-323.5389326,0.00019178,2]
[315374150,1708996238967,-500.0,0.00019178,2]
[315374151,1708996238976,-500.0,0.00019178,2]
[315374152,1708996238985,-500.0,0.00019178,2]
[315374153,1708996238996,-500.0,0.00019178,2]
[315374154,1708996239005,-500.0,0.00019178,2]
[315374155,1708996239016,-151.0,0.00019178,2]
[315374156,1708996239025,-500.0,0.00019178,2]
[315374157,1708996239034,-500.0,0.00019178,2]
[315374158,1708996239043,-3406.66,0.00019178,2]
[315374159,1708996239053,-500.0,0.00019178,2]
[315374160,1708996239062,-500.0,0.00019178,2]
[315374161,1708996239072,-276.13419307,0.00019178,2]
[315374162,1708996239081,-1594.29,0.00019178,2]
[315374163,1708996239090,-500.0,0.00019178,2]
[315374164,1708996239099,-503.35756395,0.00019178,2]
[315374165,1708996239108,-500.0,0.00019178,2]
[315374166,1708996239117,-500.0,0.00019178,2]
[315374167,1708996239126,-500.0,0.00019178,2]
[315374168,1708996239136,-500.0,0.00019178,2]
[315374169,1708996239145,-16582.13,0.00019178,2]
[315374170,1708996239154,-500.0,0.00019178,2]
[315374171,1708996239163,-500.0,0.00019178,2]
[315374172,1708996239172,-1968.58,0.00019178,2]
[315374173,1708996239181,-500.0,0.00019178,2]
[315374174,1708996239191,-500.0,0.00019178,2]
[315374175,1708996239201,-219.84428936,0.00019178,2]
[315374176,1708996239210,-500.0,0.00019178,2]
[315374177,1708996239219,-1507.9,0.00019178,2]
[315374178,1708996239229,-500.0,0.00019178,2]
[315374179,1708996239237,-500.0,0.00019178,2]
[315374180,1708996239246,-500.04999154,0.00019178,2]
[315374181,1708996239256,-291.00212191,0.00019178,2]
[315374182,1708996239265,-500.0,0.00019178,2]
[315374183,1708996239274,-7015.53,0.00019178,2]
[315374184,1708996239283,-910.0,0.00019178,2]
[315374185,1708996239292,-500.0,0.00019178,2]
[315374186,1708996239301,-1294.15,0.00019178,2]
[315374187,1708996239311,-500.0,0.00019178,2]
[315374188,1708996239320,-500.0,0.00019178,2]
[315374189,1708996239329,-3358.79,0.00019178,2]
[315374190,1708996239339,-500.0,0.00019178,2]
[315374191,1708996239348,-500.0,0.00019178,2]
[315374192,1708996239358,-500.0,0.00019178,2]
[315374193,1708996239367,-500.0,0.00019178,2]
[315374194,1708996239376,-500.0,0.00019178,2]
[315374195,1708996239385,-1060.23,0.00019178,2]
[315374196,1708996239394,-831.22,0.00019178,2]
[315374197,1708996239403,-500.0,0.00019178,2]
[315374198,1708996239412,-500.0,0.00019178,2]
[315374199,1708996239422,-345.4447297,0.00019178,2]
[315374200,1708996239431,-268.97832651,0.00019178,2]
[315374201,1708996239441,-1374.53,0.00019178,2]
[315374202,1708996239451,-17851.83,0.00019178,2]
[315374203,1708996239460,-500.0,0.00019178,2]
[315374204,1708996239469,-500.0,0.00019178,2]
[315374205,1708996239479,-632.07,0.00019178,2]
[315374206,1708996239489,-500.0,0.00019178,2]
[315374207,1708996239498,-500.0,0.00019178,2]
[315374208,1708996239507,-500.0,0.00019178,2]
[315374209,1708996239516,-500.0,0.00019178,2]
[315374210,1708996239525,-2766.53,0.00019178,2]
[315374211,1708996239534,-500.0,0.00019178,2]
[315374212,1708996239543,-1715.46,0.00019178,2]
[315374213,1708996239552,-500.0,0.00019178,2]
[315374214,1708996239561,-500.0,0.00019178,2]
[315374215,1708996239570,-500.0,0.00019178,2]
[315374216,1708996239578,-907.39,0.00019178,2]
[315374217,1708996239588,-500.60959108,0.00019178,2]
[315374218,1708996239596,-500.0,0.00019178,2]
[315374219,1708996239606,-500.0,0.00019178,2]
[315374220,1708996239615,-3493.17,0.00019178,2]
[315374221,1708996239626,-500.0,0.00019178,2]
[315374222,1708996239635,-500.0,0.00019178,2]
[315374223,1708996239644,-2076.84,0.00019178,2]
[315374224,1708996239654,-500.0,0.00019178,2]
[315374225,1708996239662,-500.0,0.00019178,2]
[315374226,1708996239672,-2065.8,0.00019178,2]
[315374227,1708996239681,-667.3,0.00019178,2]
[315374228,1708996239691,-500.0,0.00019178,2]
[315374229,1708996239701,-500.0,0.00019178,2]
[315374230,1708996239710,-500.0,0.00019178,2]
[315374231,1708996239720,-500.0,0.00019178,2]
[315374232,1708996239729,-500.0,0.00019178,2]
[315374233,1708996239738,-500.0,0.00019178,2]
[315374234,1708996239747,-500.0,0.00019178,2]
[315374235,1708996239756,-500.0,0.00019178,2]
[315374236,1708996239766,-816.71,0.00019178,2]
[315374237,1708996239775,-500.0,0.00019178,2]
[315374238,1708996239783,-1000.0,0.00019178,2]
[315374239,1708996239792,-500.0,0.00019178,2]
[315374240,1708996239801,-500.0,0.00019178,2]
[315374241,1708996239810,-500.0,0.00019178,2]
[315374242,1708996239819,-500.0,0.00019178,2]
[315374243,1708996239828,-500.0,0.00019178,2]
[315374244,1708996239838,-500.0,0.00019178,2]
[315374245,1708996239847,-1905.07,0.00019178,2]
[315374246,1708996239857,-500.0,0.00019178,2]
[315374247,1708996239867,-500.0,0.00019178,2]
[315374248,1708996239876,-500.0,0.00019178,2]
[315374249,1708996239885,-2560.44,0.00019178,2]
[315374250,1708996239894,-500.0,0.00019178,2]
[315374251,1708996239903,-522.16106929,0.00019178,2]
[315374252,1708996239912,-597.76,0.00019178,2]
[315374253,1708996239922,-11020.62,0.00019178,2]
[315374254,1708996239930,-543.31285923,0.00019178,2]
[315374255,1708996239939,-2926.59,0.00019178,2]
[315374256,1708996239949,-500.0,0.00019178,2]
[315374257,1708996239958,-173.182397,0.00019178,2]
[315374258,1708996239968,-167.871908,0.00019178,2]
[315374259,1708996239978,-166.666666,0.00019178,2]
[315374260,1708996239988,-158.618126,0.00019178,2]
[315374261,1708996239998,-594.55025048,0.00019352,2]
[315374262,1708996240097,-610.11,0.00019451,2]
[315374263,1708996240107,-610.11,0.00019451,2]
[315374264,1708996240116,-610.11,0.00019451,2]
[315374265,1708996240125,-610.11,0.00019451,2]
[315374266,1708996240134,-610.11,0.00019451,2]
[315374267,1708996240143,-1519.07055314,0.00019451,2]
[315374268,1708996240152,-500.0,0.00019452,2]
[315374269,1708996240162,-500.0,0.00019452,2]
[315374270,1708996240171,-305.83280235,0.00019452,2]
[315374271,1708996240181,-500.0,0.00019452,2]
[315374272,1708996240190,-554.22,0.00019452,2]
[315374273,1708996240199,-500.0,0.00019452,2]
[315374274,1708996240208,-503.59057309,0.00019452,2]
[315374275,1708996240218,-500.0,0.00019452,2]
[315374276,1708996240227,-500.0,0.00019452,2]
[315374277,1708996240237,-500.0,0.00019452,2]
[315374278,1708996240246,-1000.0,0.00019452,2]
[315374279,1708996240255,-500.0,0.00019452,2]
[315374280,1708996240265,-500.0,0.00019452,2]
[315374281,1708996240274,-500.0,0.00019452,2]
[315374282,1708996240283,-485.44592047,0.00019452,2]
[315374283,1708996240292,-533.32,0.00019452,2]
[315374284,1708996240301,-500.0,0.00019452,2]
[315374285,1708996240309,-502.00218481,0.00019452,2]
[315374286,1708996240318,-569.6900462,0.00019452,2]
[315374287,1708996240328,-500.0,0.00019452,2]
[315374288,1708996240337,-500.0,0.00019452,2]
[315374289,1708996240346,-500.0,0.00019452,2]
[315374290,1708996240355,-529.94195677,0.00019452,2]
[315374291,1708996240364,-1193.92,0.00019452,2]
[315374292,1708996240374,-500.0,0.00019452,2]
[315374293,1708996240383,-500.0,0.00019452,2]
[315374294,1708996240393,-500.0,0.00019452,2]
[315374295,1708996240402,-500.0,0.00019452,2]
[315374296,1708996240411,-500.0,0.00019452,2]
[315374297,1708996240421,-557.07689794,0.00019452,2]
[315374299,1708996240430,-527.5632554,0.00019452,2]
[315374301,1708996240440,-500.0,0.00019452,2]
[315374303,1708996240449,-500.0,0.00019452,2]
[315374305,1708996240458,-500.0,0.00019452,2]
[315374306,1708996240467,-736.0,0.00019452,2]
[315374307,1708996240476,-1261.99,0.00019452,2]
[315374308,1708996240486,-376.53441205,0.00019452,2]
[315374310,1708996240495,-376.01926502,0.00019452,2]
[315374311,1708996240504,-500.0,0.00019452,2]
[315374312,1708996240513,-501.10864592,0.00019452,2]
[315374313,1708996240522,-500.0,0.00019452,2]
[315374314,1708996240531,-500.0,0.00019452,2]
[315374315,1708996240540,-500.0,0.00019452,2]
[315374316,1708996240549,-500.0,0.00019452,2]
[315374317,1708996240558,-500.0,0.00019452,2]
[315374318,1708996240568,-500.0,0.00019452,2]
[315374319,1708996240577,-503.40024603,0.00019452,2]
[315374320,1708996240586,-171.64068098,0.00019452,2]
[315374321,1708996240595,-500.0,0.00019452,2]
[315374322,1708996240603,-501.23926151,0.00019452,2]
[315374323,1708996240612,-500.0,0.00019452,2]
[315374324,1708996240621,-500.0,0.00019452,2]
[315374325,1708996240631,-420.38233181,0.00019452,2]
[315374326,1708996240640,-2963.39,0.00019452,2]
[315374327,1708996240649,-500.0,0.00019452,2]
[315374328,1708996240658,-500.0,0.00019452,2]
[315374330,1708996240667,-1197.31,0.00019452,2]
[315374332,1708996240676,-418.52836242,0.00019452,2]
[315374333,1708996240685,-552.01,0.00019452,2]
[315374335,1708996240695,-1875.76,0.00019452,2]
[315374336,1708996240705,-307.47585875,0.00019452,2]
[315374337,1708996240714,-500.0,0.00019452,2]
[315374338,1708996240722,-500.0,0.00019452,2]
[315374339,1708996240731,-500.0,0.00019452,2]
[315374340,1708996240741,-497.00174819,0.00019452,2]
[315374341,1708996240750,-500.0,0.00019452,2]
[315374342,1708996240759,-417.97011128,0.00019452,2]
[315374343,1708996240768,-500.0,0.00019452,2]
[315374344,1708996240777,-500.0,0.00019452,2]
[315374345,1708996240786,-500.0,0.00019452,2]
[315374346,1708996240795,-500.0,0.00019452,2]
[315374347,1708996240804,-500.0,0.00019452,2]
[315374348,1708996240813,-500.0,0.00019452,2]
[315374349,1708996240822,-500.0,0.00019452,2]
[315374350,1708996240830,-500.0,0.00019452,2]
[315374351,1708996240839,-500.0,0.00019452,2]
[315374352,1708996240848,-500.0,0.00019452,2]
[315374353,1708996240857,-500.0,0.00019452,2]
[315374354,1708996240866,-500.0,0.00019452,2]
[315374355,1708996240875,-500.0,0.00019452,2]
[315374356,1708996240884,-500.0,0.00019452,2]
[315374357,1708996240893,-500.0,0.00019452,2]
[315374358,1708996240902,-500.0,0.00019452,2]
[315374359,1708996240912,-500.0,0.00019452,2]
[315374360,1708996240921,-500.0,0.00019452,2]
[315374361,1708996240930,-501.0634752,0.00019452,2]
[315374362,1708996240939,-500.0,0.00019452,2]
[315374363,1708996240948,-172.04761987,0.00019452,2]
[315374364,1708996240957,-2065.96,0.00019452,2]
[315374365,1708996240968,-500.0,0.00019452,2]
[315374366,1708996240977,-500.0,0.00019452,2]
[315374367,1708996240987,-500.0,0.00019452,2]
[315374368,1708996240997,-501.85263397,0.00019452,2]
[315374369,1708996241010,-500.0,0.00019452,2]
[315374370,1708996241025,-500.0,0.00019452,2]
[315374371,1708996241039,-500.0,0.00019452,2]
[315374372,1708996241053,-500.0,0.00019452,2]
[315374373,1708996241065,-500.0,0.00019452,2]
[315374374,1708996241081,-3406.66,0.00019452,2]
[315374375,1708996241094,-500.0,0.00019452,2]
[315374376,1708996241107,-1594.29,0.00019452,2]
[315374377,1708996241121,-341.57797988,0.00019452,2]
[315374378,1708996241134,-500.0,0.00019452,2]
[315374379,1708996241147,-185.15827025,0.00019452,2]
[315374380,1708996241160,-16582.13,0.00019452,2]
[315374381,1708996241173,-500.0,0.00019452,2]
[315374382,1708996241183,-500.0,0.00019452,2]
[315374383,1708996241196,-1968.58,0.00019452,2]
[315374384,1708996241208,-500.0,0.00019452,2]
[315374385,1708996241220,-500.0,0.00019452,2]
[315374386,1708996241233,-1507.9,0.00019452,2]
[315374387,1708996241245,-500.0,0.00019452,2]
[315374388,1708996241258,-500.0,0.00019452,2]
[315374389,1708996241271,-7015.53,0.00019452,2]
[315374390,1708996241282,-910.0,0.00019452,2]
[315374391,1708996241294,-500.0,0.00019452,2]
[315374392,1708996241307,-1294.15,0.00019452,2]
[315374394,1708996241320,-500.0,0.00019452,2]
[315374396,1708996241332,-500.0,0.00019452,2]
[315374397,1708996241344,-3358.79,0.00019452,2]
[315374398,1708996241356,-500.0,0.00019452,2]
[315374399,1708996241368,-500.0,0.00019452,2]
[315374400,1708996241380,-500.0,0.00019452,2]
[315374401,1708996241392,-500.0,0.00019452,2]
[315374402,1708996241406,-1060.23,0.00019452,2]
[315374403,1708996241418,-831.22,0.00019452,2]
[315374404,1708996241432,-500.0,0.00019452,2]
[315374405,1708996241446,-500.0,0.00019452,2]
[315374406,1708996241458,-1374.53,0.00019452,2]
[315374407,1708996241469,-17851.83,0.00019452,2]
[315374408,1708996241479,-500.0,0.00019452,2]
[315374410,1708996241490,-632.07,0.00019452,2]
[315374411,1708996241501,-500.0,0.00019452,2]
[315374412,1708996241513,-500.0,0.00019452,2]
[315374413,1708996241525,-500.0,0.00019452,2]
[315374414,1708996241536,-2766.53,0.00019452,2]
[315374415,1708996241549,-1715.46,0.00019452,2]
[315374416,1708996241566,-500.0,0.00019452,2]
[315374417,1708996241577,-500.0,0.00019452,2]
[315374418,1708996241587,-500.0,0.00019452,2]
[315374419,1708996241598,-907.39,0.00019452,2]
[315374420,1708996241610,-500.0,0.00019452,2]
[315374421,1708996241622,-502.11470017,0.00019452,2]
[315374422,1708996241634,-3493.17,0.00019452,2]
[315374423,1708996241645,-500.0,0.00019452,2]
[315374424,1708996241657,-500.0,0.00019452,2]
[315374425,1708996241669,-500.0,0.00019452,2]
[315374426,1708996241680,-2076.84,0.00019452,2]
[315374427,1708996241692,-2065.8,0.00019452,2]
[315374428,1708996241703,-667.3,0.00019452,2]
[315374429,1708996241714,-500.0,0.00019452,2]
[315374430,1708996241726,-500.0,0.00019452,2]
[315374431,1708996241741,-500.0,0.00019452,2]
[315374432,1708996241753,-500.0,0.00019452,2]
[315374433,1708996241764,-500.0,0.00019452,2]
[315374434,1708996241774,-500.0,0.00019452,2]
[315374435,1708996241785,-816.71,0.00019452,2]
[315374436,1708996241796,-500.0,0.00019452,2]
[315374437,1708996241806,-1000.0,0.00019452,2]
[315374438,1708996241817,-500.0,0.00019452,2]
[315374439,1708996241828,-500.0,0.00019452,2]
[315374440,1708996241839,-500.0,0.00019452,2]
[315374441,1708996241851,-500.0,0.00019452,2]
[315374442,1708996241862,-500.0,0.00019452,2]
[315374443,1708996241873,-1905.07,0.00019452,2]
[315374444,1708996241884,-500.0,0.00019452,2]
[315374445,1708996241894,-500.0,0.00019452,2]
[315374446,1708996241906,-2560.44,0.00019452,2]
[315374447,1708996241916,-500.0,0.00019452,2]
[315374448,1708996241927,-500.0,0.00019452,2]
[315374449,1708996241938,-597.76,0.00019452,2]
[315374450,1708996241949,-11020.62,0.00019452,2]
[315374451,1708996241960,-2926.59,0.00019452,2]
[315374452,1708996241971,-153.0,0.00019479,2]
[315374453,1708996241982,-153.0,0.00019479,2]
[315374454,1708996241995,-594.55025047,0.0001962,2]
[315374455,1708996242006,-166.666666,0.00019627,2]
[315374456,1708996242017,-610.11,0.00019725,2]
[315374457,1708996242028,-610.11,0.00019725,2]
[315374458,1708996242039,-610.11,0.00019725,2]
[315374459,1708996242049,-610.11,0.00019725,2]
[315374460,1708996242060,-500.0,0.00019726,2]
[315374461,1708996242072,-500.0,0.00019726,2]
[315374462,1708996242084,-619.10188517,0.00019726,2]
[315374463,1708996242095,-554.22,0.00019726,2]
[315374464,1708996242106,-500.0,0.00019726,2]
[315374465,1708996242117,-500.0,0.00019726,2]
[315374466,1708996242126,-500.0,0.00019726,2]
[315374467,1708996242136,-500.0,0.00019726,2]
[315374468,1708996242145,-1000.0,0.00019726,2]
[315374469,1708996242155,-500.0,0.00019726,2]
[315374470,1708996242164,-500.0,0.00019726,2]
[315374471,1708996242274,-500.0,0.00019726,2]
[315374472,1708996242317,-533.32,0.00019726,2]
[315374473,1708996242329,-500.0,0.00019726,2]
[315374474,1708996242338,-500.0,0.00019726,2]
[315374475,1708996242347,-500.0,0.00019726,2]
[315374476,1708996242356,-500.0,0.00019726,2]
[315374477,1708996242366,-1193.92,0.00019726,2]
[315374478,1708996242375,-478.89020998,0.00019726,2]
[315374479,1708996242384,-500.0,0.00019726,2]
[315374480,1708996242393,-500.0,0.00019726,2]
[315374481,1708996242402,-500.0,0.00019726,2]
[315374482,1708996242411,-500.0,0.00019726,2]
[315374483,1708996242420,-500.0,0.00019726,2]
[315374484,1708996242429,-200.0,0.00019726,2]
[315374485,1708996242438,-736.0,0.00019726,2]
[315374486,1708996242447,-1261.99,0.00019726,2]
[315374487,1708996242457,-500.0,0.00019726,2]
[315374488,1708996242466,-500.0,0.00019726,2]
[315374489,1708996242475,-500.0,0.00019726,2]
[315374490,1708996242483,-500.0,0.00019726,2]
[315374491,1708996242492,-500.0,0.00019726,2]
[315374492,1708996242501,-500.0,0.00019726,2]
[315374493,1708996242511,-500.0,0.00019726,2]
[315374494,1708996242520,-500.0,0.00019726,2]
[315374495,1708996242531,-500.0,0.00019726,2]
[315374496,1708996242541,-500.0,0.00019726,2]
[315374497,1708996242551,-2963.39,0.00019726,2]
[315374498,1708996242560,-500.0,0.00019726,2]
[315374499,1708996242569,-500.0,0.00019726,2]
[315374500,1708996242579,-1197.31,0.00019726,2]
[315374501,1708996242588,-552.01,0.00019726,2]
[315374502,1708996242597,-1875.76,0.00019726,2]
[315374503,1708996242607,-500.0,0.00019726,2]
[315374504,1708996242616,-500.0,0.00019726,2]
[315374505,1708996242625,-500.0,0.00019726,2]
[315374506,1708996242634,-500.0,0.00019726,2]
[315374507,1708996242643,-500.0,0.00019726,2]
[315374508,1708996242652,-500.0,0.00019726,2]
[315374509,1708996242661,-500.0,0.00019726,2]
[315374510,1708996242671,-500.0,0.00019726,2]
[315374511,1708996242680,-500.0,0.00019726,2]
[315374512,1708996242689,-500.0,0.00019726,2]
[315374513,1708996242700,-500.0,0.00019726,2]
[315374514,1708996242709,-500.0,0.00019726,2]
[315374515,1708996242717,-500.0,0.00019726,2]
[315374516,1708996242726,-500.0,0.00019726,2]
[315374517,1708996242735,-500.0,0.00019726,2]
[315374518,1708996242744,-500.0,0.00019726,2]
[315374519,1708996242753,-500.0,0.00019726,2]
[315374520,1708996242762,-290.39303171,0.00019726,2]
[315374521,1708996242771,-614.17651892,0.00019726,2]
[315374522,1708996242780,-500.0,0.00019726,2]
[315374523,1708996242789,-500.0,0.00019726,2]
[315374524,1708996242798,-500.0,0.00019726,2]
[315374525,1708996242807,-2065.96,0.00019726,2]
[315374526,1708996242816,-500.0,0.00019726,2]
[315374527,1708996242825,-500.0,0.00019726,2]
[315374528,1708996242834,-229.23019617,0.00019726,2]
[315374529,1708996242843,-500.0,0.00019726,2]
[315374530,1708996242853,-225.36072718,0.00019726,2]
[315374531,1708996242862,-500.0,0.00019726,2]
[315374532,1708996242872,-3406.66,0.00019726,2]
[315374533,1708996242881,-206.9662042,0.00019726,2]
[315374534,1708996242891,-1594.29,0.00019726,2]
[315374535,1708996242902,-16582.13,0.00019726,2]
[315374537,1708996242913,-500.0,0.00019726,2]
[315374539,1708996242922,-500.0,0.00019726,2]
[315374541,1708996242931,-1968.58,0.00019726,2]
[315374543,1708996242940,-500.0,0.00019726,2]
[315374545,1708996242951,-500.0,0.00019726,2]
[315374546,1708996242960,-1507.9,0.00019726,2]
[315374548,1708996242971,-502.13232332,0.00019726,2]
[315374550,1708996242980,-500.0,0.00019726,2]
[315374551,1708996242990,-7015.53,0.00019726,2]
[315374552,1708996242999,-910.0,0.00019726,2]
[315374553,1708996243009,-1294.15,0.00019726,2]
[315374554,1708996243019,-501.11759681,0.00019726,2]
[315374555,1708996243028,-500.0,0.00019726,2]
[315374556,1708996243037,-3358.79,0.00019726,2]
[315374557,1708996243046,-500.0,0.00019726,2]
[315374558,1708996243057,-500.0,0.00019726,2]
[315374560,1708996243068,-315.2161144,0.00019726,2]
[315374561,1708996243078,-500.0,0.00019726,2]
[315374562,1708996243089,-1060.23,0.00019726,2]
[315374563,1708996243099,-831.22,0.00019726,2]
[315374564,1708996243108,-500.0,0.00019726,2]
[315374565,1708996243118,-596.53827503,0.00019726,2]
[315374566,1708996243127,-1374.53,0.00019726,2]
[315374567,1708996243136,-17851.83,0.00019726,2]
[315374568,1708996243145,-500.0,0.00019726,2]
[315374569,1708996243155,-632.07,0.00019726,2]
[315374570,1708996243165,-500.0,0.00019726,2]
[315374571,1708996243175,-2766.53,0.00019726,2]
[315374572,1708996243184,-1715.46,0.00019726,2]
[315374573,1708996243193,-500.0,0.00019726,2]
[315374575,1708996243203,-500.0,0.00019726,2]
[315374576,1708996243212,-500.0,0.00019726,2]
[315374577,1708996243221,-907.39,0.00019726,2]
[315374578,1708996243231,-500.0,0.00019726,2]
[315374579,1708996243240,-3493.17,0.00019726,2]
[315374580,1708996243248,-500.0,0.00019726,2]
[315374581,1708996243257,-500.0,0.00019726,2]
[315374582,1708996243266,-500.0,0.00019726,2]
[315374583,1708996243276,-2076.84,0.00019726,2]
[315374584,1708996243285,-2065.8,0.00019726,2]
[315374585,1708996243294,-667.3,0.00019726,2]
[315374586,1708996243303,-500.0,0.00019726,2]
[315374587,1708996243312,-500.0,0.00019726,2]
[315374588,1708996243324,-500.0,0.00019726,2]
[315374589,1708996243333,-500.0,0.00019726,2]
[315374590,1708996243343,-500.0,0.00019726,2]
[315374591,1708996243352,-816.71,0.00019726,2]
[315374592,1708996243361,-536.17501023,0.00019726,2]
[315374593,1708996243370,-1001.44015609,0.00019726,2]
[315374594,1708996243379,-193.35199858,0.00019726,2]
[315374595,1708996243388,-500.0,0.00019726,2]
[315374596,1708996243398,-612.23784616,0.00019726,2]
[315374597,1708996243407,-500.0,0.00019726,2]
[315374598,1708996243416,-500.0,0.00019726,2]
[315374599,1708996243425,-1905.07,0.00019726,2]
[315374600,1708996243435,-500.0,0.00019726,2]
[315374601,1708996243444,-510.36105547,0.00019726,2]
[315374602,1708996243453,-2560.44,0.00019726,2]
[315374603,1708996243463,-500.0,0.00019726,2]
[315374604,1708996243472,-500.0,0.00019726,2]
[315374605,1708996243482,-597.76,0.00019726,2]
[315374606,1708996243491,-11020.62,0.00019726,2]
[315374607,1708996243500,-2926.59,0.00019726,2]
[315374608,1708996243510,-594.55025047,0.00019888,2]
[315374609,1708996243519,-610.11,0.00019889,2]
[315374610,1708996243528,-306.0,0.00019941,2]
[315374611,1708996243537,-104303.12329218,0.00019999,2]
[315374612,1708996243546,-610.11,0.00019999,2]
[315374613,1708996243556,-610.11,0.00019999,2]
[315374614,1708996243564,-610.11,0.00019999,2]
[315374615,1708996243574,-500.0,0.0002,2]
[315374616,1708996243583,-554.22,0.0002,2]
[315374617,1708996243593,-500.0,0.0002,2]
[315374618,1708996243602,-309.24117467,0.0002,2]
[315374619,1708996243611,-500.0,0.0002,2]
[315374620,1708996243621,-500.0,0.0002,2]
[315374621,1708996243630,-1000.0,0.0002,2]